Cogmind - Beta 16 @@@ ROGUE MODE // 2025.11.18 @ 22:58:19 Player: Lazz Result: Destroyed by S-43 Plague with Heavy Machine Gun Performance ------------- Evolutions (7) 3500 Regions Visited (17) 3400 Robots Destroyed (55) 275 Value Destroyed (2132) 2132 Prototype IDs (20) 400 Alien Tech Used (2) 400 Bonus (2153) 2153 TOTAL SCORE: 12260 Bonus ------- Follower Combat Kills 853 Met Zhirov 300 Met Warlord at Base 500 MAIN.C Attacked Warlord 500 Cogmind --------- Core Integrity 0/1300 Matter 215/300 Energy 70/100 System Corruption 19% Temperature Cool (5) Movement Walking (130) Location -3/Armory Parts ------- > --- POWER (2) -------- (None) > --- PROPULSION (6) --- Myomer Leg Shield Leg > --- UTILITY (10) ----- (None) > --- WEAPON (3) ------- (None) > --- INVENTORY (5) ---- Advanced Signal Interpreter Experimental System Shield Peak State ------------ > --- POWER ------------ Compact Particle Reactor Compact Particle Reactor > --- PROPULSION ------- Improved Thunder Leg Improved Thunder Leg Improved Thunder Leg Improved Thunder Leg Enhanced Biometal Leg Enhanced Biometal Leg > --- UTILITY ---------- Advanced Signal Interpreter Advanced Point Defense System Wardrone Bay > --- WEAPON ----------- Enhanced Quantum Rifle Enhanced Quantum Rifle Enhanced Quantum Rifle > --- INVENTORY -------- Improved Coolant Injector Advanced Signal Interpreter Advanced Transmission Jammer Experimental System Shield Signal Generator [Rating: 215] Favorites ----------- Power Light Ion Engine Engine Light Ion Engine Power Core Reinforced Fission Core Reactor Particle Reactor Propulsion Medium Treads Treads Medium Treads Leg Carbon-fiber Leg Wheel Compact Wheel Flight Unit Cooled Nuclear Pulse Thruster Utility Advanced Signal Interpreter Device Improved Coolant Injector Storage Small Storage Unit Processor Advanced Signal Interpreter Hackware Advanced Hacking Suite Protection Improved Power Shielding Weapon Backup Laser III Energy Gun Backup Laser III Energy Cannon HERF Cannon Ballistic Gun Light Assault Rifle Ballistic Cannon Mass Driver Launcher Improved Proton Missile Launcher Special Weapon Mining Laser Impact Weapon Power Maul Slashing Weapon Power Sword Special Melee Weapon Datajack Build | -11 -10 -10 -10 -8 -6 -5 -5 -5 -5 -4 -4 -4 -4 -4 -3 -3 -3 ------- Run | Yrd Mat Min Sub Rec Fac Fac Upp Upp Zhi Pro Fac Upp Upp War Pro Res Arm Slots Evolved 14 | . . . . . 8 2 . . . . 2 . . . . 2 . Power 1 | . . . . . . 1 . . . . . . . . . . . Propulsion 4 | . . . . . 2 . . . . . 1 . . . . 1 . Utility 8 | . . . . . 5 1 . . . . 1 . . . . 1 . Weapon 1 | . . . . . 1 . . . . . . . . . . . . Parts Attached 126 | 7 . 1 2 . 27 1 13 9 7 3 5 . 5 8 2 5 31 Power 15 | 1 . . . . 3 . 2 1 1 . 1 . 1 . 1 . 4 Engine 7 | 1 . . . . 3 . 2 . . . . . 1 . . . . Core 2 | . . . . . . . . 1 . . 1 . . . . . . Reactor 6 | . . . . . . . . . 1 . . . . . 1 . 4 Propulsion 47 | 2 . . . . 9 1 2 4 2 1 2 . 1 7 . 1 15 Treads 7 | . . . . . 3 . 1 1 . . . . . 2 . . . Leg 27 | 2 . . . . 5 . . 3 . . 1 . . 5 . 1 10 Wheel 3 | . . . . . . 1 1 . . . 1 . . . . . . Hover . | . . . . . . . . . . . . . . . . . . Flight 10 | . . . . . 1 . . . 2 1 . . 1 . . . 5 Utility 35 | 2 . . . . 8 . 5 3 4 1 2 . 2 1 . 1 6 Device 15 | 1 . . . . 2 . 4 1 1 1 2 . . 1 . 1 1 Storage 3 | 1 . . . . . . . . 1 . . . . . . . 1 Processor 9 | . . . . . 5 . 1 1 . . . . 1 . . . 1 Hackware 1 | . . . . . . . . . 1 . . . . . . . . Protection 7 | . . . . . 1 . . 1 1 . . . 1 . . . 3 Artifact . | . . . . . . . . . . . . . . . . . . Weapon 29 | 2 . 1 2 . 7 . 4 1 . 1 . . 1 . 1 3 6 Energy Gun 10 | 2 . . . . 3 . . . . . . . . . 1 . 4 Energy Cannon 4 | . . . . . . . 1 . . . . . . . . 3 . Ballistic Gun 3 | . . . 1 . 1 . . . . . . . . . . . 1 Ballistic Cannon 5 | . . . . . 1 . 2 1 . . . . 1 . . . . Launcher 3 | . . . 1 . 1 . 1 . . . . . . . . . . Special Weapon 1 | . . 1 . . . . . . . . . . . . . . . Impact Weapon 1 | . . . . . . . . . . 1 . . . . . . . Slashing Weapon 1 | . . . . . . . . . . . . . . . . . 1 Piercing Weapon . | . . . . . . . . . . . . . . . . . . Special Melee Weapon 1 | . . . . . 1 . . . . . . . . . . . . Unidentified Prototypes 11 | . . . . . 1 . . . 7 . . . . 2 . . 1 Corrupted Parts 3 | . . . . . 1 . . 2 . . . . . . . . . System Corruption 18 | . . . . . 7 . . 11 . . . . . . . . . Parts Lost 77 | . . . . . 21 . . 8 . 11 . . 6 1 1 . 29 Power 12 | . . . . . 4 . . 1 . 2 . . . 1 . . 4 Propulsion 28 | . . . . . 6 . . 2 . 3 . . 3 . . . 14 Utility 19 | . . . . . 4 . . 3 . 3 . . 2 . . . 7 Weapon 18 | . . . . . 7 . . 2 . 3 . . 1 . 1 . 4 Highest Loss Streak 22 | . . . . . 11 . . 4 . 10 . . 3 1 1 . 22 To Critical Strikes 1 | . . . . . . . . . . . . . . . . . 1 Average Backups 4 | 2 5 7 7 7 5 2 4 3 4 4 5 5 4 4 3 3 3 Power . | . 1 1 1 1 1 . . . . . . . . . . . . Propulsion . | 1 2 3 3 3 1 . . . . 1 1 1 1 . 1 . . Utility 1 | . . . . . . 1 1 1 2 2 3 3 2 2 2 3 2 Weapon 1 | . 2 3 3 3 2 1 2 1 1 . 1 1 1 1 . . . Tool/Special . | . . . . . . . . . . . . . . . . . . Unused Backups 6 | . 2 . . . . . 1 . . . . . . . . . 3 Power . | . . . . . . . . . . . . . . . . . . Propulsion 2 | . 2 . . . . . . . . . . . . . . . . Utility 3 | . . . . . . . . . . . . . . . . . 3 Weapon 1 | . . . . . . . 1 . . . . . . . . . . Tool/Special . | . . . . . . . . . . . . . . . . . . Average Slot Usage (%) 70 | . 100 100 100 100 76 31 81 94 86 76 62 68 67 43 61 61 53 Engine 6 | . 14 14 14 14 4 . 4 7 3 . . . 2 7 5 4 1 Treads 3 | . . . . . 13 . 3 4 2 . . . . 4 . . . Leg 11 | . 28 28 28 28 3 5 5 9 17 8 2 5 5 5 26 28 20 Wheel 2 | . . . . . . 1 7 7 . . 4 5 . 1 . . . Flight 2 | . . . . . . . . . 1 10 15 15 16 4 . . . Device 11 | . 14 14 14 14 4 5 20 23 19 10 8 10 7 4 5 8 6 Storage 1 | . 14 14 14 14 5 . . . . . . . . . . . 1 Processor 13 | . . . . . 26 17 19 17 23 23 21 21 22 5 5 4 4 Energy Gun 6 | . 28 24 22 14 10 . . . . . . . . 6 14 6 8 Energy Cannon 1 | . . . . . . . 4 2 . . . . . . . 2 . Ballistic Cannon 2 | . . . . . . . 4 11 6 6 . . . . . . . Launcher 1 | . . . 2 . . . 4 2 . . . . . . . . . Peak Build Rating 215 | 9 10 10 10 10 56 25 77 84 91 91 81 81 96 159 174 196 215 Average Rating 88 | 5 9 10 10 10 41 24 64 73 74 73 76 81 74 135 172 182 124 On Entrance 63 | . 9 10 10 10 10 24 25 77 84 91 57 81 81 48 159 167 196 Avg Prop Armor Cover (%) 9 | . . . . . 4 25 12 9 5 1 14 18 13 4 . . 7 Naked Turns 11 | . . . . . . . . . . . . . . . . . 11 Heaviest Build 107 | 12 12 12 14 12 37 1 52 70 62 62 12 12 24 59 80 107 107 Greatest Support 155 | 20 20 20 20 20 69 16 32 46 45 45 18 18 25 135 135 155 155 Greatest Overweight (x) 10 | . . . . . 3 . 2 4 10 2 . . . 2 . . 2 Average Overweight (x) . | . . . . . . . 1 1 . . . . . 1 . . . Largest Inventory Capacity 8 | 8 8 8 8 8 8 5 5 5 5 5 5 5 5 5 5 5 5 Average Capacity 5 | 7 8 8 8 8 7 5 5 5 5 5 5 5 5 5 5 5 5 Most Carried 8 | 4 7 7 7 7 8 2 5 5 5 5 5 5 5 5 5 5 5 Average Carried 4 | 2 5 7 7 7 5 2 4 3 4 4 5 5 4 4 4 4 3 Final Capacity 8 | 8 8 8 8 8 5 5 5 5 5 5 5 5 5 5 5 5 5 Final Carried 7 | 4 7 7 7 7 2 2 5 5 5 5 5 5 5 5 4 5 2 Class Distribution -------------------- 38% | Mutant 12% | Gunner 12% | Scavenger-Skirmisher 10% | Derelict-Skirmisher 7% | Commander-Mutant 6% | Scavenger-Mutant 4% | Skirmisher 3% | Scavenger-Tank Dominant Class ---------------- Mutant | -10/Materials Mutant | -10/Mines Mutant | -10/Subcaves Mutant | -8/Recycling Mutant | -6/Factory Mutant | -5/Factory Derelict-Skirmisher | -5/Upper Caves Scavenger-Skirmisher | -5/Upper Caves Scavenger-Mutant | -5/Zhirov Sprinter | -4/Proximity Caves Mutant | -4/Factory Mutant | -4/Upper Caves Mutant | -4/Upper Caves Mutant | -4/Warlord Gunner | -3/Proximity Caves Scavenger-Mutant | -3/Research Scavenger-Tank | -3/Armory Resources | -11 -10 -10 -10 -8 -6 -5 -5 -5 -5 -4 -4 -4 -4 -4 -3 -3 -3 ----------- Run | Yrd Mat Min Sub Rec Fac Fac Upp Upp Zhi Pro Fac Upp Upp War Pro Res Arm Matter Collected 1948 | 270 . . 19 55 328 . 194 344 . 139 . . 101 199 99 . 200 Remotely 144 | . . . . . . . 144 . . . . . . . . . . Salvage Created 2288 | 169 81 . 45 . 568 . 98 581 . . . . . . . . 746 Parts 103 | 10 7 . 8 . 18 . 7 18 . . . . . . . . 35 Haulers Intercepted . | . . . . . . . . . . . . . . . . . . Recyclers Shooed 1 | . . . . . 1 . . . . . . . . . . . . Parts Field Recycled . | . . . . . . . . . . . . . . . . . . Retrieved Matter . | . . . . . . . . . . . . . . . . . . Parts Self-Destructed 30 | . . . 7 . . . 14 9 . . . . . . . . . Prevented 8 | . . . . . . . . 5 . 3 . . . . . . . Parts Restored . | . . . . . . . . . . . . . . . . . . Kills | -11 -10 -10 -10 -8 -6 -5 -5 -5 -5 -4 -4 -4 -4 -4 -3 -3 -3 ------- Run | Yrd Mat Min Sub Rec Fac Fac Upp Upp Zhi Pro Fac Upp Upp War Pro Res Arm Combat Hostiles Destroyed 47 | . 4 . 4 . 10 . 4 12 . . . . . . . . 13 Guns 25 | . 4 . 1 . 9 . . . . . . . . . . . 11 Cannons 12 | . . . . . . . 4 8 . . . . . . . . . AOE 5 | . . . 3 . . . . 2 . . . . . . . . . Classes Destroyed 11 | 2 2 . 1 . 2 . . 2 . . . . . . . . 2 Tunneler 4 | 4 . . . . . . . . . . . . . . . . . Recycler 2 | 1 . . . . 1 . . . . . . . . . . . . Turret 2 | . . . 2 . . . . . . . . . . . . . . Swarmer 22 | . 3 . 4 . 4 . 4 3 . . . . . . . . 4 Saboteur 1 | . . . . . . . . . . . . . . . . . 1 Grunt 9 | . 1 . . . 1 . . 6 . . . . . . . . 1 Brawler 1 | . . . . . . . . 1 . . . . . . . . . Duelist 2 | . . . . . . . . 1 . . . . . . . . 1 Sentry 5 | . . . . . 3 . . 1 . . . . . . . . 1 Hunter 4 | . . . . . . . . . . . . . . . . . 4 Programmer 3 | . . . . . 2 . . . . . . . . . . . 1 Best Kill Streak 5 | 5 3 . 4 . 3 . 3 5 . . . . . . . . 3 Combat Bots Only 5 | . 3 . 4 . 3 . 3 5 . . . . . . . . 3 Max Kills in Single Turn 3 | 1 1 . 3 . 1 . 1 3 . . . . . . . . 2 Gunslinging 1 | . . . . . . . . . . . . . . . . . 1 Exploded 3 | . . . 3 . . . . 2 . . . . . . . . . Melee . | . . . . . . . . . . . . . . . . . . Uniques/NPCs Destroyed . | . . . . . . . . . . . . . . . . . . Combat | -11 -10 -10 -10 -8 -6 -5 -5 -5 -5 -4 -4 -4 -4 -4 -3 -3 -3 -------- Run | Yrd Mat Min Sub Rec Fac Fac Upp Upp Zhi Pro Fac Upp Upp War Pro Res Arm Hostile Shots Fired 1359 | . 13 . 60 . 315 . 14 62 . 96 5 10 54 24 148 . 558 Missed 507 | . 4 . 26 . 110 . 5 20 . 32 3 6 27 7 62 . 205 Hits 852 | . 9 . 34 . 205 . 9 42 . 64 2 4 27 17 86 . 353 Melee 19 | . . . . . . . . 3 . . 1 . . 2 3 . 10 Projectile 833 | . 9 . 34 . 205 . 9 39 . 64 1 4 27 15 83 . 343 AOE 4 | . . . . . . . . . . . 3 . . . . . 1 Critical Strikes 25 | . . . . . 3 . . 1 . 5 . . . . 4 . 12 Part Disruptions 1 | . . . . . . . . . . . . . . . . . 1 Damage Taken 14449 | . 80 . 258 . 2938 . 151 870 . 1303 129 75 519 221 1740 . 6165 Core 2888 | . . . 79 . 740 . 30 98 . 280 58 19 137 . 127 . 1320 Absorbed by Shields 513 | . . . . . . . . . . . . . . 139 . . 374 Redirected to Shielding 160 | . . . . . . . . . . . . . 58 . . . 102 Regen/Repaired (Parts) 199 | . . . . . 66 . . . . . . . . 133 . . . Core Remaining (%) 60 | 100 . . . 68 12 . . . . 54 . . . . 70 . . Volleys Fired 163 | 12 9 7 12 . 51 . 6 25 . 1 . . . 1 1 . 38 Largest 3 | 2 2 2 2 . 3 . 3 3 . 2 . . . 2 3 . 3 Hottest 207 | 90 90 150 90 . 207 . 178 186 . 91 . . . 80 168 . 195 Shots Fired 356 | 24 18 9 22 . 88 . 14 62 . 2 . . . 2 3 . 112 Gun 261 | 24 18 7 16 . 79 . . . . . . . . 2 3 . 112 Cannon 76 | . . . . . 6 . 12 56 . 2 . . . . . . . Launcher 17 | . . . 6 . 3 . 2 6 . . . . . . . . . Special 2 | . . 2 . . . . . . . . . . . . . . . Kinetic 75 | . . . . . 19 . 6 41 . 2 . . . . . . 7 Thermal 243 | 24 18 9 16 . 66 . . . . . . . . 2 3 . 105 Explosive 6 | . . . 6 . . . . . . . . . . . . . . Electromagnetic 32 | . . . . . 3 . 8 21 . . . . . . . . . Robot Hit Streak 12 | 5 4 . 7 . 12 . 4 7 . . . . . 2 2 . 9 Robot Miss Streak 5 | 2 3 . 3 . 5 . 5 2 . 2 . . . . 1 . 4 Penetration Max 1 | . . . . . . . . 1 . . . . . . . . 1 Secondary Targets 5 | . . . . . 1 . . . . . . . . . . . 4 Max Gunslinging Chain 1 | . . . . . 1 . . . . . . . . . . . 1 Shots Hit Robots 203 | 16 9 . 14 . 55 . 5 33 . . . . . 2 2 . 67 Core Hits 98 | 7 5 . 11 . 23 . 3 18 . . . . . 1 . . 30 Critical Kills 2 | . . . . . . . . 2 . . . . . . . . . Critical Parts Destroyed 5 | . . . . . . . . 3 . . . . . . . . 2 Critical Strikes 9 | 1 . . 1 . . . . 5 . . . . . . . . 2 Burn 2 | 1 . . 1 . . . . . . . . . . . . . . Destroy 7 | . . . . . . . . 5 . . . . . . . . 2 Melee Attacks 8 | . . . . . 3 . . . . . . 3 1 . . . 1 Impact 4 | . . . . . . . . . . . . 3 1 . . . . Slashing 1 | . . . . . . . . . . . . . . . . . 1 Piercing . | . . . . . . . . . . . . . . . . . . Sneak Attacks . | . . . . . . . . . . . . . . . . . . Combat Hostiles . | . . . . . . . . . . . . . . . . . . Follow-up Attacks . | . . . . . . . . . . . . . . . . . . Damage Inflicted 5599 | 206 117 7 345 . 1215 . 166 1222 . . . . . 38 44 . 2239 Guns 3661 | 200 117 . 120 . 1030 . . . . . . . . 26 41 . 2127 Cannons 1078 | . . . . . 79 . 166 833 . . . . . . . . . Explosions 679 | . . . 225 . 65 . . 389 . . . . . . . . . Melee . | . . . . . . . . . . . . . . . . . . Ramming 181 | 6 . 7 . . 41 . . . . . . . . 12 3 . 112 Kinetic 1084 | . . . . . 254 . 71 586 . . . . . . . . 173 Thermal 3369 | 200 117 . 120 . 855 . . 56 . . . . . 26 41 . 1954 Explosive 225 | . . . 225 . . . . . . . . . . . . . . Electromagnetic 740 | . . . . . 65 . 95 580 . . . . . . . . . Impact . | . . . . . . . . . . . . . . . . . . Slashing . | . . . . . . . . . . . . . . . . . . Piercing . | . . . . . . . . . . . . . . . . . . Highest Corruption 19 | . . . . . 14 . . 12 12 12 . . . . . . 19 Average Corruption 10 | . . . . . 8 . . 11 12 12 . . . . . . 6 Corruption Purged . | . . . . . . . . . . . . . . . . . . Corruption Blocked . | . . . . . . . . . . . . . . . . . . Effects 75 | . . . . . 11 . . 33 14 10 . . . . . . 7 Message Errors 10 | . . . . . . . . 5 2 1 . . . . . . 2 Matter Fused 15 | . . . . . 3 . . 6 2 3 . . . . . . 1 Heat Flow Errors 17 | . . . . . 3 . . 6 4 3 . . . . . . 1 Energy Discharges 10 | . . . . . 2 . . 4 3 . . . . . . . 1 Parts Rejected 1 | . . . . . . . . 1 . . . . . . . . . Parts Fused 3 | . . . . . 1 . . 1 . . . . . . . . 1 Data Loss (minor) 8 | . . . . . . . . 5 2 1 . . . . . . . Data Loss (major) 4 | . . . . . 1 . . 2 1 . . . . . . . . Alerts 2 | . . . . . 1 . . 1 . . . . . . . . . Misdirections 2 | . . . . . . . . . . 2 . . . . . . . Weapon Failures 3 | . . . . . . . . 2 . . . . . . . . 1 Overload Shots . | . . . . . . . . . . . . . . . . . . Overflow Damage 86 | . . . . . . . 23 63 . . . . . . . . . Projectiles 60 | . . . . . . . 23 37 . . . . . . . . . Explosions 26 | . . . . . . . . 26 . . . . . . . . . Melee . | . . . . . . . . . . . . . . . . . . Knockbacks 4 | . . . . . . . . 4 . . . . . . . . . Impact . | . . . . . . . . . . . . . . . . . . Kinetic 4 | . . . . . . . . 4 . . . . . . . . . Secondary . | . . . . . . . . . . . . . . . . . . Self-Inflicted Damage 77 | . . . 21 . . . 19 35 . . . . . . . . 2 Shots 4 | . . . 1 . . . 1 2 . . . . . . . . . Rammed 3 | . . . . . 2 . . . . . . . . . . . 1 Targets Rammed 35 | 1 . 2 . . 17 . . . . . . . . 1 1 . 13 Kicked 32 | 1 . 2 . . 15 . . . . . . . . 1 1 . 12 Crushed . | . . . . . . . . . . . . . . . . . . Highest Temperature 635 | 300 90 132 3 . 635 . 168 256 177 191 . . . . 18 . 336 Average Temperature 128 | 140 38 76 3 . 196 . 55 107 84 73 . . . . 12 . 116 Received Heat Transfer 2121 | . 12 . 84 . 627 . . 306 . 333 . . 18 52 478 . 211 Effects 20 | 1 . . . . 18 . . . . . . . . . . . 1 Shutdowns 4 | . . . . . 4 . . . . . . . . . . . . Energy Bleed 6 | . . . . . 5 . . . . . . . . . . . 1 Interference 3 | . . . . . 3 . . . . . . . . . . . . Short Circuit 2 | . . . . . 2 . . . . . . . . . . . . Damage (minor) 1 | 1 . . . . . . . . . . . . . . . . . Damage (major) 3 | . . . . . 3 . . . . . . . . . . . . Damage (core) 1 | . . . . . 1 . . . . . . . . . . . . Siege Activations . | . . . . . . . . . . . . . . . . . . Martial Activations . | . . . . . . . . . . . . . . . . . . Shielding Activations . | . . . . . . . . . . . . . . . . . . Robots Disrupted . | . . . . . . . . . . . . . . . . . . Combat Hostiles . | . . . . . . . . . . . . . . . . . . Robots Corrupted 2 | . . . . . . . . 2 . . . . . . . . . Combat Hostiles 2 | . . . . . . . . 2 . . . . . . . . . Parts Fried 2 | . . . . . . . . 2 . . . . . . . . . Impact Corruptions . | . . . . . . . . . . . . . . . . . . Robots Melted 3 | . . . . . 1 . . . . . . . . . . . 2 Combat Hostiles 3 | . . . . . 1 . . . . . . . . . . . 2 Parts Melted 12 | 1 . . . . 5 . . 1 . . . . . . . . 5 Heat Transferred 5395 | 595 310 . 432 . 1517 . . 100 . . . . . 36 74 . 2331 Parts Sabotaged 5 | . . . . . . . . . . . . . . . . . 5 Parts Stolen . | . . . . . . . . . . . . . . . . . . Parts Stripped . | . . . . . . . . . . . . . . . . . . Power Chain Reactions 1 | . . . . . . . . 1 . . . . . . . . . Alert | -11 -10 -10 -10 -8 -6 -5 -5 -5 -5 -4 -4 -4 -4 -4 -3 -3 -3 ------- Run | Yrd Mat Min Sub Rec Fac Fac Upp Upp Zhi Pro Fac Upp Upp War Pro Res Arm Maximum Alert Level . | . . . . . . . . . . . . . . . . . . Low Security (%) 100 | 100 100 100 . 100 100 100 . . . . 100 . . . . 100 100 Level 1 . | . . . . . . . . . . . . . . . . . . Level 2 . | . . . . . . . . . . . . . . . . . . Level 3 . | . . . . . . . . . . . . . . . . . . Level 4 . | . . . . . . . . . . . . . . . . . . Level 5 . | . . . . . . . . . . . . . . . . . . High Security . | . . . . . . . . . . . . . . . . . . Max Security . | . . . . . . . . . . . . . . . . . . Peak Influence 130 | 15 95 31 . 130 63 . . . . . 12 . . . . 87 116 Initial 100 | . . 31 . 100 50 . . . . . 12 . . . . 87 . Average 29 | 4 23 16 . 67 14 . . . . . 3 . . . . 39 49 Influence Increases 2652 | 25 142 2 240 30 345 . 120 275 . 60 . 15 165 408 300 . 525 Destroy 0b10 Robot/C 1300 | . 80 . 120 . 200 . 80 240 . . . . . 320 . . 260 Destroy 0b10 Robot/NC 35 | 25 . . . . 5 . . . . . . . . 5 . . . Destroy Leader 160 | . 10 . . . 60 . 10 20 . . . . . . . . 60 Allied During Kill 83 | . . . . . . . . . . . . . . 83 . . . Successful Hack 19 | . 7 . . . 12 . . . . . . . . . . . . Select Force Hacks 30 | . . . . 30 . . . . . . . . . . . . . Disable Machine 60 | . . . . . 15 . . . . . . . . . . . 45 Destroy Structure 15 | . . 2 . . 3 . . . . . . . . . . . 10 Advance Influence 50 | . . . . . 50 . . . . . . . . . . . . Lose Combat Pursuer 900 | . 45 . 120 . . . 30 15 . 60 . 15 165 . 300 . 150 Influence Decreases 2539 | 25 60 81 33 240 345 . 118 277 . 40 20 . 135 139 484 130 412 Entered New Map 580 | . . 51 3 110 . . . 2 . . 8 . 4 45 314 43 . Time Decay 1417 | 25 60 30 30 130 219 . 118 205 . 30 12 . 91 18 160 87 202 Lost Part 476 | . . . . . 126 . . 70 . 10 . . 40 10 10 . 210 Lost Ally 66 | . . . . . . . . . . . . . . 66 . . . Squads Dispatched 19 | . 2 . . . 9 . . . . . 1 . . . 1 1 5 Investigation 3 | . 1 . . . 1 . . . . . . . . . . . 1 Extermination 3 | . . . . . 1 . . . . . . . . . . 1 1 Reinforcement 5 | . 1 . . . 1 . . . . . 1 . . . . . 2 Assault 2 | . . . . . . . . . . . . . . . 1 . 1 Garrison 6 | . . . . . 6 . . . . . . . . . . . . Intercept . | . . . . . . . . . . . . . . . . . . Searches Triggered . | . . . . . . . . . . . . . . . . . . Construction Impeded . | . . . . . . . . . . . . . . . . . . Haulers Reinforced 1 | . . . . . 1 . . . . . . . . . . . . Active Scanning Responses . | . . . . . . . . . . . . . . . . . . Cargo Convoy Interrupts . | . . . . . . . . . . . . . . . . . . Stealth | -11 -10 -10 -10 -8 -6 -5 -5 -5 -5 -4 -4 -4 -4 -4 -3 -3 -3 --------- Run | Yrd Mat Min Sub Rec Fac Fac Upp Upp Zhi Pro Fac Upp Upp War Pro Res Arm Distress Signals 11 | . . . . . 2 . . . . . . . . 2 . . 7 Communications Jammed . | . . . . . . . . . . . . . . . . . . Distress Signals . | . . . . . . . . . . . . . . . . . . Times Spotted 184 | . 8 . 8 . 23 . 5 13 . 7 3 3 14 26 23 . 51 Peak Tracking Total 16 | . 3 . 5 . 5 . 5 5 . 3 3 3 6 13 11 . 16 Tactical Retreats 29 | . 2 . 3 . . . 1 1 . 1 . 1 8 . 8 . 4 Traps | -11 -10 -10 -10 -8 -6 -5 -5 -5 -5 -4 -4 -4 -4 -4 -3 -3 -3 ------- Run | Yrd Mat Min Sub Rec Fac Fac Upp Upp Zhi Pro Fac Upp Upp War Pro Res Arm Traps Triggered 4 | . . . . . 2 . . . . . . . . . . 1 1 Indirectly 1 | . . . . . 1 . . . . . . . . . . . . Trap Hack Attempts . | . . . . . . . . . . . . . . . . . . Triggered . | . . . . . . . . . . . . . . . . . . Disarmed . | . . . . . . . . . . . . . . . . . . Reprogrammed . | . . . . . . . . . . . . . . . . . . Reused . | . . . . . . . . . . . . . . . . . . Traps Extracted . | . . . . . . . . . . . . . . . . . . Installed . | . . . . . . . . . . . . . . . . . . Triggered . | . . . . . . . . . . . . . . . . . . Machines | -11 -10 -10 -10 -8 -6 -5 -5 -5 -5 -4 -4 -4 -4 -4 -3 -3 -3 ---------- Run | Yrd Mat Min Sub Rec Fac Fac Upp Upp Zhi Pro Fac Upp Upp War Pro Res Arm Machines Disabled 7 | . . . 3 . 1 . . . . . . . . . . . 3 Max in Single Turn 3 | . . . 3 . 1 . . . . . . . . . . . 1 Machines Repaired . | . . . . . . . . . . . . . . . . . . Machines Dismantled . | . . . . . . . . . . . . . . . . . . Machines Sabotaged . | . . . . . . . . . . . . . . . . . . Overloaded Fab Kills . | . . . . . . . . . . . . . . . . . . Hacking | -11 -10 -10 -10 -8 -6 -5 -5 -5 -5 -4 -4 -4 -4 -4 -3 -3 -3 --------- Run | Yrd Mat Min Sub Rec Fac Fac Upp Upp Zhi Pro Fac Upp Upp War Pro Res Arm Machines Accessed 23 | . 2 . . 2 2 1 2 1 9 . 1 . . 1 . . 2 Terminals 6 | . 2 . . 1 1 . . . . . . . . . . . 2 Fabricators . | . . . . . . . . . . . . . . . . . . Repair Stations . | . . . . . . . . . . . . . . . . . . Recycling Units 3 | . . . . 1 . 1 . . . . 1 . . . . . . Scanalyzers 1 | . . . . . 1 . . . . . . . . . . . . Garrison Access . | . . . . . . . . . . . . . . . . . . Total Hacks 78 | . 5 . . 5 5 1 4 1 48 . 5 . . 1 . . 3 Successful 64 | . 2 . . 2 2 1 4 1 48 . 2 . . 1 . . 1 Failed 14 | . 3 . . 3 3 . . . . . 3 . . . . . 2 Catastrophic 3 | . 2 . . 1 . . . . . . . . . . . . . Database Lockouts . | . . . . . . . . . . . . . . . . . . Manual 9 | . . . . 1 2 . . . 1 . 2 . . 1 . . 2 Terminals 14 | . 5 . . 4 2 . . . . . . . . . . . 3 Fabricators . | . . . . . . . . . . . . . . . . . . Repair Stations . | . . . . . . . . . . . . . . . . . . Recycling Units 7 | . . . . 1 . 1 . . . . 5 . . . . . . Scanalyzers 3 | . . . . . 3 . . . . . . . . . . . . Garrison Access . | . . . . . . . . . . . . . . . . . . Terminal Hacks 59 | . 2 . . 1 1 . 4 1 48 . . . . 1 . . 1 Record 39 | . . . . . . . 3 . 36 . . . . . . . . Part Schematic 4 | . . . . . . . . . 4 . . . . . . . . Robot Analysis 4 | . . . . . . . . . 4 . . . . . . . . Prototype ID Bank 4 | . . . . . . . . . 4 . . . . . . . . Open Door 4 | . . . . . . . 1 1 . . . . . 1 . . 1 Branch Access Points 1 | . 1 . . . . . . . . . . . . . . . . Terminal Index 1 | . . . . . 1 . . . . . . . . . . . . Scanalyzer Index 1 | . 1 . . . . . . . . . . . . . . . . Zone Layout 1 | . . . . 1 . . . . . . . . . . . . . Fabricator Hacks . | . . . . . . . . . . . . . . . . . . Repair Station Hacks . | . . . . . . . . . . . . . . . . . . Recycling Unit Hacks 2 | . . . . . . 1 . . . . 1 . . . . . . Retrieve Components 2 | . . . . . . 1 . . . . 1 . . . . . . Scanalyzer 1 | . . . . . 1 . . . . . . . . . . . . Retrieve Study 1 | . . . . . 1 . . . . . . . . . . . . Garrison Access Hacks . | . . . . . . . . . . . . . . . . . . Unauthorized Hacks 2 | . . . . 1 . . . . . . 1 . . . . . . Terminals . | . . . . . . . . . . . . . . . . . . Fabricators . | . . . . . . . . . . . . . . . . . . Repair Stations . | . . . . . . . . . . . . . . . . . . Recycling Units 2 | . . . . 1 . . . . . . 1 . . . . . . Recyclers 1 | . . . . . . . . . . . 1 . . . . . . Tunnel 1 | . . . . 1 . . . . . . . . . . . . . Scanalyzers . | . . . . . . . . . . . . . . . . . . Garrison Access . | . . . . . . . . . . . . . . . . . . Data Cores Recovered . | . . . . . . . . . . . . . . . . . . Used . | . . . . . . . . . . . . . . . . . . Hacking Detections 8 | . 1 . . 1 2 1 . . . . 1 . . . . . 2 Full Trace Events 2 | . 1 . . . 1 . . . . . . . . . . . . Feedback Events . | . . . . . . . . . . . . . . . . . . Feedback Blocked . | . . . . . . . . . . . . . . . . . . Robot Schematics Acquired . | . . . . . . . . . . . . . . . . . . Robots Built . | . . . . . . . . . . . . . . . . . . Authchips . | . . . . . . . . . . . . . . . . . . Time . | . . . . . . . . . . . . . . . . . . Total Robot Build Rating . | . . . . . . . . . . . . . . . . . . Part Schematics Acquired 4 | . . . . . . . . . 4 . . . . . . . . Parts Built . | . . . . . . . . . . . . . . . . . . Authchips . | . . . . . . . . . . . . . . . . . . Time . | . . . . . . . . . . . . . . . . . . Total Part Build Rating . | . . . . . . . . . . . . . . . . . . Part Studies Acquired 1 | . . . . . 1 . . . . . . . . . . . . Parts Repaired . | . . . . . . . . . . . . . . . . . . Time . | . . . . . . . . . . . . . . . . . . Parts Recycled . | . . . . . . . . . . . . . . . . . . Recycled Matter . | . . . . . . . . . . . . . . . . . . Retrieved Matter . | . . . . . . . . . . . . . . . . . . Retrieved Components 2 | . . . . . . 1 . . . . 1 . . . . . . Parts Scanalyzed . | . . . . . . . . . . . . . . . . . . Part Schematics Acquired . | . . . . . . . . . . . . . . . . . . Parts Damaged . | . . . . . . . . . . . . . . . . . . Bothacking | -11 -10 -10 -10 -8 -6 -5 -5 -5 -5 -4 -4 -4 -4 -4 -3 -3 -3 ------------ Run | Yrd Mat Min Sub Rec Fac Fac Upp Upp Zhi Pro Fac Upp Upp War Pro Res Arm Used RIF Installer . | . . . . . . . . . . . . . . . . . . Robots Hacked 1 | . . . . . 1 . . . . . . . . . . . . Non-combat . | . . . . . . . . . . . . . . . . . . Combat 1 | . . . . . 1 . . . . . . . . . . . . Robot Hacks Applied 1 | . . . . . 1 . . . . . . . . . . . . parse_system 1 | . . . . . 1 . . . . . . . . . . . . Relay Couplers Released . | . . . . . . . . . . . . . . . . . . Fabnet Peak Effective % . | . . . . . . . . . . . . . . . . . . Robots Rewired 5 | . . . . . . . . . . . . . . 5 . . . Allies Hacked . | . . . . . . . . . . . . . . . . . . Hacks Repelled . | . . . . . . . . . . . . . . . . . . Allies | -11 -10 -10 -10 -8 -6 -5 -5 -5 -5 -4 -4 -4 -4 -4 -3 -3 -3 -------- Run | Yrd Mat Min Sub Rec Fac Fac Upp Upp Zhi Pro Fac Upp Upp War Pro Res Arm Total Allies 5 | . . . . . . . . . . . . . . 5 . . . Largest Group 5 | . . . . . . . . . . . . . . 5 . . . Highest-Rated Group 264 | . . . . . . . . . . . . . . 264 . . . Highest-Rated Ally 64 | . . . . . . . . . . . . . . 64 . . . Total Orders . | . . . . . . . . . . . . . . . . . . Ally Attacks 56 | . . . . . . . . . . . . . . 56 . . . Total Damage 3459 | . . . . . . . . . . . . . . 3459 . . . Kills 17 | . . . . . . . . . . . . . . 17 . . . Allies Corrupted . | . . . . . . . . . . . . . . . . . . Allies Melted 1 | . . . . . . . . . . . . . . 1 . . . Intel | -11 -10 -10 -10 -8 -6 -5 -5 -5 -5 -4 -4 -4 -4 -4 -3 -3 -3 ------- Run | Yrd Mat Min Sub Rec Fac Fac Upp Upp Zhi Pro Fac Upp Upp War Pro Res Arm Active Infowar (turns) 4055 | 8 208 76 94 268 666 68 962 1239 365 101 . . . . . . . Sensors 2611 | . . . . . 486 . 420 1239 365 101 . . . . . . . IFF 1700 | . . . . . 119 68 962 551 . . . . . . . . . Terrain 1549 | 8 208 76 94 268 61 . . 410 365 59 . . . . . . . Robot Analysis Total 4 | . . . . . . . . . 4 . . . . . . . . Derelict Logs Recovered 9 | . . 1 . . . . 2 2 . 1 . 1 2 . . . . Drone Launches 1 | . . . . . . . . . . . . . . 1 . . . Drone Recoveries . | . . . . . . . . . . . . . . . . . . Exploration | -11 -10 -10 -10 -8 -6 -5 -5 -5 -5 -4 -4 -4 -4 -4 -3 -3 -3 ------------- Run | Yrd Mat Min Sub Rec Fac Fac Upp Upp Zhi Pro Fac Upp Upp War Pro Res Arm Turns Passed 8040 | 101 208 76 94 268 990 68 962 1239 365 189 81 94 262 1845 480 212 506 Spaces Moved 5522 | 45 127 44 36 167 497 61 782 720 234 333 139 192 462 729 421 174 359 Core 65 | 6 . . . . 28 . . . 2 . . . . . . . 29 Treads 948 | . . . . . 320 . 6 7 . . . . . 615 . . . Legs 1927 | 39 127 44 36 167 132 31 . 292 231 59 . . . 20 421 174 154 Wheels 1227 | . . . . . . 30 776 421 . . . . . . . . . Hover . | . . . . . . . . . . . . . . . . . . Flight 1355 | . . . . . 17 . . . 1 274 139 192 462 94 . . 176 Fastest Speed 29 | 50 120 120 120 120 120 100 100 115 120 29 29 44 35 42 112 113 34 Average Speed 124 | 110 120 120 120 120 151 110 117 149 144 53 39 44 38 246 112 113 74 Slowest Speed 550 | 120 120 120 120 120 200 120 240 320 550 260 44 44 44 320 112 113 220 Overloaded Moves 393 | . . . . . . . . . . . . . 299 94 . . . Propulsion Burnouts . | . . . . . . . . . . . . . . . . . . Robots Hopped 2 | . . . . . . . . . . . . . . . . . 2 Potential Cave-ins . | . . . . . . . . . . . . . . . . . . Cave-ins Triggered 1 | . . . . . . . . . . . . . . . . . 1 Teleports 1 | . . . . . . . . . 1 . . . . . . . . Exploration Rate (%) 36 | 4 20 12 5 36 14 1 90 75 62 56 3 37 64 76 67 7 24 Regions Visited 17 Branch Regions 12 Pre-discovered Areas 8 | . . . . 1 . . 2 . 3 . . 1 1 . . . . Known Exits Taken 14 | . 1 1 . . 1 1 1 1 1 1 1 1 1 1 1 1 . Unknown Exits Taken 3 | 1 . . 1 1 . . . . . . . . . . . . . Scrap Searched 13 | . . . . . . . 5 3 . 1 . . 1 . 3 . . Spaces Dug 5 | . . 2 . . . . . . . . . 3 . . . . . Terrain Destroyed 46 | . . 2 17 . 1 . 5 14 . . . 3 . . . . 4 Melee 3 | . . . . . . . . . . . . 3 . . . . . Projectile 26 | . . 2 . . 1 . 5 14 . . . . . . . . 4 AOE 17 | . . . 17 . . . . . . . . . . . . . . Terrain Rammed . | . . . . . . . . . . . . . . . . . . Walls Destroyed . | . . . . . . . . . . . . . . . . . . Machines Disabled . | . . . . . . . . . . . . . . . . . . Actions | -11 -10 -10 -10 -8 -6 -5 -5 -5 -5 -4 -4 -4 -4 -4 -3 -3 -3 --------- Run | Yrd Mat Min Sub Rec Fac Fac Upp Upp Zhi Pro Fac Upp Upp War Pro Res Arm Total 6335 | 68 165 53 62 234 651 61 807 837 264 341 162 194 542 778 426 188 502 Wait 350 | . 23 . 10 68 34 . . 77 . 1 18 . 71 1 2 6 39 Move 5502 | 45 126 43 35 166 496 60 781 719 233 332 138 191 461 728 420 173 355 Hop 2 | . . . . . . . . . . . . . . . . . 2 Pick Up 42 | 4 5 . . . 7 . 4 3 4 2 . . 1 3 . 2 7 Fast Attach 98 | 7 . . . . 17 1 12 8 10 1 5 . 4 6 1 4 22 Attach 30 | . . . . . 10 . . 3 2 3 . . 1 2 1 1 7 Detach 8 | . . . . . 5 . 1 . 1 1 . . . . . . . Swap 15 | . . 1 5 . 2 . 1 . 1 . . . . 1 . . 4 Drop 59 | . 2 . . . 9 . 2 2 13 . 1 . 3 11 . 2 14 Fire 163 | 12 9 7 12 . 51 . 6 25 . 1 . . . 1 1 . 38 Melee 8 | . . . . . 3 . . . . . . 3 1 . . . 1 Ram 1 | . . . . . . . . . . . . . . . . . 1 Kick 31 | . . 2 . . 15 . . . . . . . . 1 1 . 12 Crush 2 | . . . . . 2 . . . . . . . . . . . . Escape Stasis . | . . . . . . . . . . . . . . . . . . Rewire 24 | . . . . . . . . . . . . . . 24 . . . Trap . | . . . . . . . . . . . . . . . . . . Miscellaneous . | . . . . . . . . . . . . . . . . . . Route ------- -11/Scrapyard -10/Materials (discovered 2 exits: *Min x2) -10/Mines -10/Subcaves -8/Recycling -6/Factory -5/Factory -5/Upper Caves -5/Upper Caves (discovered 2 exits: *Fac / *Zhi) -5/Zhirov -4/Proximity Caves -4/Factory (discovered 2 exits: Res / *Upp) -4/Upper Caves -4/Upper Caves -4/Warlord -3/Proximity Caves -3/Research -3/Armory History --------- Turn | Location | Event 28 | -11/Scrapyard | Discovered new exit (range 16) 102 | -11/Scrapyard | Entered Materials 283 | -10/Materials | Discovered new exit (range 16) 293 | -10/Materials | Identified exit to Mines 310 | -10/Materials | Entered Mines 311 | -10/Mines | Build established: Mutant 338 | -10/Mines | Identified exit to Subcaves 386 | -10/Mines | Entered Subcaves 387 | -10/Subcaves | Approached by a straggling Scientist 416 | -10/Subcaves | Discovered new exit (range 15) 480 | -10/Subcaves | Entered Recycling 481 | -8/Recycling | Joined Warlord attack on 0b10 via Recycling 581 | -8/Recycling | Discovered new exit (range 14) 748 | -8/Recycling | Entered Factory 748 | -6/Factory | Evolved 8 slots: Propulsion x2, Utility x5, Weapon x1 810 | -6/Factory | Garrison activated, responded to threat 1269 | -6/Factory | Garrison activated, responded to threat 1379 | -6/Factory | Build established: Skirmisher 1414 | -6/Factory | System corruption reached 10% 1519 | -6/Factory | Core integrity fell below 50% 1564 | -6/Factory | Lost 11 parts (2p3n2u4w) 1725 | -6/Factory | Discovered new exit (range 9) 1730 | -6/Factory | Core integrity fell below 20% 1737 | -6/Factory | Identified exit to Factory 1738 | -6/Factory | Entered another Factory area 1738 | -5/Factory | Evolved 2 slots: Power x1, Utility x1 1753 | -5/Factory | Lost 5 parts (1p1n1u2w) 1760 | -5/Factory | Build established: Mutant 1793 | -5/Factory | Discovered new exit (range 11) 1805 | -5/Factory | Identified exit to Upper Caves 1806 | -5/Factory | Entered Upper Caves 2196 | -5/Upper Caves | Build established: Gunner 2232 | -5/Upper Caves | Entered an active Warlord outpost 2247 | -5/Upper Caves | Learned Factory security intel 2364 | -5/Upper Caves | Learned Factory garrison access intel 2630 | -5/Upper Caves | Build established: Derelict-Skirmisher 2757 | -5/Upper Caves | Discovered new exit (range 11) 2767 | -5/Upper Caves | Identified exit to Upper Caves 2768 | -5/Upper Caves | Entered another Upper Caves area 2847 | -5/Upper Caves | Discovered new exit (range 4) 2850 | -5/Upper Caves | Identified exit to Factory 3217 | -5/Upper Caves | Attracted the attention of an 0b10 checkpoint 3343 | -5/Upper Caves | System corruption reached 10% 3356 | -5/Upper Caves | Lost 4 parts (1p1n1u1w) 3451 | -5/Upper Caves | Lost 3 parts (1n1u1w) 3509 | -5/Upper Caves | Build established: Scavenger-Skirmisher 3573 | -5/Upper Caves | Learned Factory stockpile data 3641 | -5/Upper Caves | Learned location of 1 exit from Factory 3914 | -5/Upper Caves | Discovered new exit (range 13) 4005 | -5/Upper Caves | Identified exit to Zhirov 4007 | -5/Upper Caves | Entered Zhirov 4007 | -5/Zhirov | Discovered new exit (range 3) 4009 | -5/Zhirov | Identified exit to Proximity Caves 4042 | -5/Zhirov | Met Zhirov 4078 | -5/Zhirov | Learned location of Quarantine (-3) 4078 | -5/Zhirov | Learned location of Testing (-2) 4103 | -5/Zhirov | Zhirov requested help retrieving the SGEMP Prototype 4126 | -5/Zhirov | Found Alien Artifact 4141 | -5/Zhirov | Identified Integrated Dissipator 4141 | -5/Zhirov | Installed Integrated Dissipator, increased core heat dissipation (+20) 4142 | -5/Zhirov | Found Alien Artifact 4145 | -5/Zhirov | Identified Transdimensional Reconstructor 4145 | -5/Zhirov | Warped through subspace 4372 | -5/Zhirov | Entered Proximity Caves 4506 | -4/Proximity Caves | Lost 10 parts (1p3n3u3w) 4555 | -4/Proximity Caves | Learned location of 1 exit from Upper Caves 4558 | -4/Proximity Caves | Discovered exit to Factory (range 10) 4560 | -4/Proximity Caves | Attracted the attention of an 0b10 checkpoint 4561 | -4/Proximity Caves | Entered Factory 4561 | -4/Factory | Evolved 2 slots: Propulsion x1, Utility x1 4562 | -4/Factory | Identified exit to Research 4565 | -4/Factory | Loaded intel: 4 garrison access locations 4610 | -4/Factory | Discovered new exit (range 9) 4613 | -4/Factory | Identified exit to Upper Caves 4614 | -4/Factory | Spotted B-86 Titan 4642 | -4/Factory | Entered Upper Caves 4643 | -4/Upper Caves | Identified exit to Upper Caves 4645 | -4/Upper Caves | Learned location of Armory (-3) 4736 | -4/Upper Caves | Entered another Upper Caves area 4742 | -4/Upper Caves | Learned Research emergency access door positions 4806 | -4/Upper Caves | Spotted B-86 Titan 4812 | -4/Upper Caves | Attracted the attention of an 0b10 checkpoint 4910 | -4/Upper Caves | Encountered a Warlord checkpoint 4920 | -4/Upper Caves | Lost 3 parts (1n1u1w) 4994 | -4/Upper Caves | Discovered new exit (range 5) 4997 | -4/Upper Caves | Identified exit to Warlord 4998 | -4/Upper Caves | Entered Warlord 5040 | -4/Warlord | Found Prototype Device 5040 | -4/Warlord | Identified Wardrone Bay 5158 | -4/Warlord | Build established: Mutant 5490 | -4/Warlord | Opened side exit 5806 | -4/Warlord | Met Warlord 5831 | -4/Warlord | Warlord's base attacked by MAIN.C 6181 | -4/Warlord | Warlord forces counterattacked 6219 | -4/Warlord | Found Signal Generator 6448 | -4/Warlord | Build established: Commander-Mutant 6506 | -4/Warlord | Warlord base infiltrated, sounded retreat 6779 | -4/Warlord | Spotted Executioner 6785 | -4/Warlord | Allies destroyed Executioner 6786 | -4/Warlord | Spotted Executioner 6786 | -4/Warlord | Discovered new exit (range 23) 6798 | -4/Warlord | Allies destroyed Executioner 6835 | -4/Warlord | Spotted Striker 6842 | -4/Warlord | Identified exit to Proximity Caves 6843 | -4/Warlord | Entered Proximity Caves 6900 | -3/Proximity Caves | Attracted the attention of an 0b10 outpost 7203 | -3/Proximity Caves | Build established: Gunner 7316 | -3/Proximity Caves | Discovered exit to Research (range 7) 7323 | -3/Proximity Caves | Entered Research 7323 | -3/Research | Evolved 2 slots: Propulsion x1, Utility x1 7472 | -3/Research | Found Prototype Hackware 7524 | -3/Research | Discovered new exit (range 10) 7534 | -3/Research | Identified exit to Armory 7535 | -3/Research | Entered Armory 7793 | -3/Armory | Lost 4 parts (3n1u) 7836 | -3/Armory | Crushed by falling debris 7929 | -3/Armory | System corruption reached 10% 7974 | -3/Armory | Core integrity fell below 50% 7982 | -3/Armory | Core integrity fell below 20% 8004 | -3/Armory | Lost 22 parts (2p10n6u4w) 8041 | -3/Armory | Destroyed by S-43 Plague with Heavy Machine Gun Last Messages --------------- 07961_ E-15 Imp destroyed. 07962_ Adv. Signal Interpreter blown off. 07962_ E-15 Imp destroyed. 07963_ Impulse Thruster blown off. 07963_ E-15 Imp destroyed. 07963_ Acquired Impulse Thruster. 07968_ System corrupted: Energy discharge (-17). 07972_ Acquired Shield Leg. 07973_ Impulse Thruster destroyed. 07977_ Knocked back. 07981_ Critical hit (Burn: +50). 07981_ W-44 Eye sends out distress signal. 07983_ Slug penetrates Wall. 07987_ TJAF&W BU5DGH0XKDZWI/IS YADCDFS:<5KO,W 08003_ H&JWR3R 08031_ Impulse Thruster destroyed. [Achievement: Tester] Map ----- +----------------------------------------------------+ | ?????????????????????????????????????????????????? | | ?????????????????????????????????????????????????? | | ?????????????????????????????????????????????????? | | ?????????????????????????????????????????????????? | | ?????????????????????????????????????????????????? | | ?????????????????????????????????????????????????? | | ?????????????????????????????????????????????????? | | ?????????????????????????????????????????????????? | | ?????????????????????????????????????????????????? | | ?????????????????????????????????????????????????? | | ?????????????????????????????????????????????????? | | ?????????????????????????????????????????????????? | | ?????????????????????????????????????????????????? | | ?????????????????????????????????????????????????? | | ?????????????????????????????????????????????????? | | ?????????????????????????????????????????????????? | | ?????????????????????????????????????????????????? | | ??????????????????????????#######????????????????? | | ?????????????????????????## # ##???????????????? | | ?????????????????######### ################# | | ?????????????? d | | ?????????????? | | ????????????????######Y#### ##########/####### | | ????????????????# s ##???# # | | ?????????????????# "" ##????# # | | ?????????????????# "" @ p#?????# # | | ?????????????????# "Y !! """ #?????# # | | ?????????????????# "" !! """ +?????# # | | ?????????????????# "" """ ##????# # | | ?????????????????# #?????# "" "" # | | ?????????????????# """ """ #?????# """ """ # | | ?????????????????# """ """ #?????# """ """ # | | ?????????????????# """ """ #?????# """ """ # | | ?????????????????# ?? #?????# """ """ # | | ?????????????????# ??? ?? #?????# # | | ?????????????????###????###??#??????### """##### | | ??????????????????????????????????????#"" F""#???? | | ??????????????????????????????????????#""""""#???? | | ??????????????????????????????????????# """" #???? | | ??????????????????????????????????????########???? | | ?????????????????????????????????????????????????? | | ?????????????????????????????????????????????????? | | ?????????????????????????????????????????????????? | | ?????????????????????????????????????????????????? | | ?????????????????????????????????????????????????? | | ?????????????????????????????????????????????????? | | ?????????????????????????????????????????????????? | | ?????????????????????????????????????????????????? | | ?????????????????????????????????????????????????? | | ?????????????????????????????????????????????????? | +----------------------------------------------------+ Best States ------------- Heat Dissipation 66 Coolant Potential 80 Energy Generation 41 Energy Capacity 505 Matter Stores 300 Matter Capacity 300 Sight Range 16 Robot Scan Range 15 Terrain Scan Range 20 Terrain Scan Density 610 Power Amplification 30 Armor Coverage 600 Core Shielding 30 Power Shielding 66 Propulsion Shielding 33 Point Defense Rating 240 Weapon Cycling 15 Evasion (%) 70 Target Analysis 12 Armor Integrity Analysis 40 Recoil Reduction 3 Offensive Hacking 14 Item Schematics ----------------- Assault Drone Bay | -5/Zhirov | Free Exp. Heat Sink | -5/Zhirov | Free Exp. Optical Array | -5/Zhirov | Free Imp. Arc Thrower | -5/Zhirov | Free Robot Schematics ------------------ None Fabricated ------------ Nothing Repaired ---------- Nothing Studied --------- VTOL Module | -6/Factory | Hacked Alien Tech Used ----------------- Integrated Dissipator Transdimensional Reconstructor Achievements -------------- Charge!!! Chop Chop Explorer Knowing Is Half The Battle Rockin' Loadout Tester The Science Guy Ultimate Loadout Challenges ------------ None Game ------ Seed PiercelightHelicalMace Manual? 0 Play Time 01:28:38 Cumulative 86.0 hours Start 2025.11.18 @ 21:15:29 End 2025.11.18 @ 22:58:19 Sessions 1 Manual Loads 0 Difficulty Rogue Special Mode None Game No. 118 Rogue 118 Adventurer 0 Explorer 0 Win Type - Total 1 Types 1/0/0/0/0/0/0/0/0/0 Lore% 54 Gallery% 50 Achievement% 38 Wizard Run 0 Options --------- Layout 2 ASCII 0 Keyboard 0 Movement Mouse Keybinds 0 Fullscreen 1 Font 16/SmallcapsGlow Map View 50x44 Zoom Use 0% Tactical HUD 1 Map Filters NONE Filters NONE Steam SD RUN: 2909f9b0-78b8-4830-869e-cc4398bde73e